{"text_format":"1","workbook":"xlsx","n_sheets":2,"sheets":["forside","Skjema"],"not_rendered":{"charts":0,"images":1,"macros":1,"external_links":0,"defined_names":1,"comments":0,"pivot_tables":0},"unopened":[],"bounds":{"document_bytes":16777216,"sheet_cells":100000,"rows_first":2000,"rows_last":500,"rows_between":2000,"halvings":0,"cell_chars":16384,"cell_head_chars":4096},"cells_cut":0,"cells_raw":0,"read":"whole","date_system":"1900"}

{"sheet":"forside","index":0,"n_rows":5,"n_cols":12,"rows_kept":5,"cut":false,"hidden":false,"merged":[[4,0,4,13]]}
[null,null,null,null,null,null,null,null,null,null,null,"Oppdatert februar-19"]
[null,null,null,null,null,null,null,null,null,null,null,"PO-senteret v/lønnsteamet"]
[]
[" "]
["SKJEMA FOR RAPPORTERING AV SKATTEPLIKTIGE NATURALYTELSER"]

{"sheet":"Skjema","index":1,"n_rows":40,"n_cols":11,"rows_kept":40,"cut":false,"hidden":false,"merged":[[31,0,34,3],[35,0,36,3],[4,0,4,10],[7,8,7,10],[7,0,7,1],[7,2,7,3],[11,3,11,4],[12,3,12,4],[13,3,13,4],[14,3,14,4],[15,3,15,4],[16,3,16,4],[17,3,17,4],[10,6,10,8],[28,3,28,4],[7,5,7,6],[23,3,23,4],[24,3,24,4],[25,3,25,4],[26,3,26,4],[27,3,27,4],[18,3,18,4],[19,3,19,4],[20,3,20,4],[21,3,21,4],[22,3,22,4]]}
[null,null,null,null,null,null,null,null,null,"Oppdatert februar-19"]
[null,null,null,null,null,null,null,null,null,"PO-senteret v/lønnsteamet"]
[]
[]
["RAPPORTERING AV SKATTEPLIKTIGE YTELSER MOTTATT SOM EN FØLGE AV ARBEIDSFORHOLDET/VERVET"]
[]
[]
["Arb.takers/ folkevalgtes navn",null,null,null,"Fødselsdato",null,null,"Enhet"]
[]
[]
[null,null,null,null,null,"GAVE","RABATT FRA TREDJEPART",null,null,"ANDRE YTELSER"]
["ÅR","MÅNED","TYPE YTELSE (gave, rabatt eller andre ytelser)","SPESIFIKASJON AV YTELSEN",null,"VERDI PÅ MOTTATT GAVE FRA TREDJEPART","VERDI PÅ KJØPT VARE","BETALT VEDERLAG","SKATTEPL.\nRABATT","VERDI AV MOTTATT YTELSE","SUM SKATTEPLIKTIG BELØP"]
[null,null,null,null,null,null,null,null,{"$f":"+G13-H13","v":0},null,{"$f":"+F13+I13+J13","v":0}]
[null,null,null,null,null,null,null,null,{"$f":"+G14-H14","v":0},null,{"$f":"+F14+I14+J14","v":0}]
[null,null,null,null,null,null,null,null,0,null,0]
[null,null,null,null,null,null,null,null,0,null,0]
[null,null,null,null,null,null,null,null,0,null,0]
[null,null,null,null,null,null,null,null,0,null,0]
[null,null,null,null,null,null,null,null,0,null,0]
[null,null,null,null,null,null,null,null,0,null,0]
[null,null,null,null,null,null,null,null,0,null,0]
[null,null,null,null,null,null,null,null,0,null,0]
[null,null,null,null,null,null,null,null,0,null,0]
[null,null,null,null,null,null,null,null,0,null,0]
[null,null,null,null,null,null,null,null,0,null,0]
[null,null,null,null,null,null,null,null,0,null,0]
[null,null,null,null,null,null,null,null,0,null,0]
[null,null,null,null,null,null,null,null,0,null,0]
[null,null,null,null,null,{"$f":"SUM(F13:F13)","v":0},0,0,0,0,0]
[]
[]
["\"Verdi\" i skjema ovenfor - her skal det angis allment tilgjengelig pris i sluttbrukermarkedet (tilbudskampanjer o.l. kan legges til grunn).    Beregning av skattepliktig fordel skal dokumenteres, med dokumentasjon både av  det som er registrert i kolonne for \"verdi\" og eventuelt betalt vederlag.          "]
[null,null,null,null,null,"Lønnart","Konto","Tjeneste","Ansvar","Prosjekt","Skattepl.beløp"]
[null,null,null,null,null,722,10591,null,null,null,{"$f":"K29","v":0}]
[]
["Skjema skal signeres av arbeidstaker/folkevalgt og attesteres og anvises ifølge enhetens arbeidsflyt, og skal deretter sendes til Personal- og organisasjonssenteret for registrering.",null,null,null,null,"Sign arb.taker:","Dato/sign"]
[]
[null,null,null,null,null,"Attestert:","Dato/sign"]
[]
[null,null,null,null,null,"Anvist:","Dato/sign"]